bitfinex-derivatives/quotes_ETHF0:USTF0_20250524
["timestamp","ask_amount","ask_price","bid_price","bid_amount"]
[1748103738526,16.48846,2551.8,2551.7,0.58254399]
[1748103738726,21.48846,2551.8,2551.7,0.58254399]
[1748103739021,21.48846,2551.8,2551.3,0.78361]
[1748103739022,0.7836,2551.4,2551.3,0.78361]
[1748103739419,3.2078,2551.6,2551.2,1.4082]
[1748103739621,0.7836,2551.4,2551.2,2.19182]
[1748103739821,1.351,2551.3,2551.2,2.19182]
[1748103740127,1.3396,2551.5,2551.4,0.78359]
[1748103740327,18.9716,2551.5,2551.4,0.78359]
[1748103740823,19.75515,2551.5,2551.4,0.78359]
[1748103741325,18.9716,2551.5,2551.4,0.78359]
[1748103742222,19.75515,2551.5,2551.3,2.1918]
[1748103742429,17.633,2551.5,2551.4,0.78359]
[1748103742725,20.8408,2551.7,2551.6,0.78352]
[1748103743233,20.8408,2551.7,2551.5,1.48644]
[1748103743431,22.95551,2551.7,2551.6,1.3481]
[1748103744532,20.8408,2551.7,2551.6,2.13162]
[1748103744732,1.46093,2551.9,2551.7,0.78347]
[1748103744938,19.09493,2551.9,2551.8,1.407]
[1748103745240,18.3115,2551.9,2551.8,2.19046]
[1748103745440,1.46093,2551.9,2551.8,1.407]
[1748103745639,19.09493,2551.9,2551.8,1.407]
[1748103747536,1.46093,2551.9,2551.8,1.407]
[1748103748133,2.0797,2551.9,2551.5,0.7029]
[1748103748330,0.78347,2551.8,2551.7,0.78348]
[1748103748940,0.78347,2551.8,2551.7,0.78349]
[1748103750041,0.78349,2551.7,2551.6,1.3228]
[1748103751442,1.44709,2551.7,2551.6,1.3228]
[1748103752544,2.76689,2551.7,2551.6,1.3228]
[1748103752740,2.76689,2551.7,2551.2,0.6514]
[1748103752741,0.78362,2551.3,2551.2,0.6514]
[1748103752941,0.78362,2551.3,2551.2,1.9532]
[1748103753640,1.46832,2551.3,2551.2,1.9532]
[1748103753841,1.46832,2551.3,2551.2,2.73685]
[1748103754841,1.46832,2551.3,2551.2,1.9532]
[1748103755042,1.46832,2551.3,2551.2,2.73685]
[1748103755244,21.6254,2551.4,2551.3,0.78362]
[1748103755438,21.6254,2551.4,2551.3,2.08542]
[1748103756348,21.6254,2551.4,2551.3,1.3018]
[1748103757349,0.78365,2551.2,2551.1,0.00588016]
[1748103757648,0.78364,2551.3,2551.2,0.78365]
[1748103758449,0.78365,2551.2,2551.1,2.11885016]
[1748103758850,0.78365,2551.2,2551.1,1.33518016]
[1748103759653,0.78365,2551.2,2551.1,2.11886016]
[1748103761455,0.78364,2551.3,2551.2,0.78363]
[1748103761659,3.2078,2551.4,2551.3,0.78362]
[1748103762156,3.99139,2551.4,2551.3,0.78362]
[1748103762557,0.78363,2551.3,2551.2,0.78363]
[1748103762758,3.2078,2551.4,2551.3,0.78362]
[1748103763551,3.99138,2551.4,2551.3,0.78362]
[1748103764760,0.78363,2551.3,2551.2,0.78363]
[1748103765153,3.99141,2551.4,2551.3,0.78362]
[1748103765349,3.2078,2551.4,2551.3,0.78362]
[1748103766859,0.78357,2551.5,2551.4,0.78359]
[1748103767049,0.78359,2551.4,2551.3,0.7836]
[1748103767256,17.636,2551.5,2551.1,0.00588016]
[1748103767655,0.78363,2551.3,2551.2,0.78363]
[1748103767851,0.78361,2551.4,2551.3,0.78362]
[1748103770058,20.8438,2551.5,2551.1,0.00588016]
[1748103770257,3.99145,2551.2,2551.1,0.00588016]
[1748103771156,5.31675,2551.2,2551.1,0.00588016]
[1748103772463,5.31675,2551.2,2551.1,0.78956016]
[1748103772951,4.5331,2551.2,2551.1,0.78956016]
[1748103773157,1.43204,2551.3,2551.1,0.78956016]
[1748103773958,0.78365,2551.2,2551.1,0.78956016]
[1748103775461,0.6484,2551.3,2551.2,0.78365]
[1748103775656,0.78361,2551.4,2551.3,0.78361]
[1748103775863,5.61825985,2551.5,2551.2,0.7019]
[1748103776055,5.61825985,2551.5,2551.4,0.78359]
[1748103776253,23.25525985,2551.5,2551.4,0.78359]
[1748103776654,5.61825985,2551.5,2551.4,0.78359]
[1748103776861,23.25525985,2551.5,2551.4,0.78359]
[1748103777064,5.61825985,2551.5,2551.4,0.78359]
[1748103777363,20.92029626,2551.5,2551.4,0.78359]
[1748103778464,0.07549626,2551.5,2551.4,0.78359]
[1748103778660,17.71249626,2551.5,2551.4,0.78359]
[1748103780260,17.71249626,2551.5,2551.3,1.4435]
[1748103780467,0.78359,2551.4,2551.3,0.6599]
[1748103780967,0.78362,2551.3,2551.2,0.7019]
[1748103781166,0.78362,2551.3,2551.2,1.48555]
[1748103782070,0.78365,2551.2,2551.1,0.78954016]
[1748103782665,1.4117,2551.4,2551.1,0.00588016]
[1748103782871,2.41045985,2551.5,2551.4,0.78359]
[1748103783072,2.41045985,2551.5,2551.4,16.49259]
[1748103783372,2.41045985,2551.5,2551.4,21.49259]
[1748103784471,0.07549626,2551.5,2551.4,22.07513399]
[1748103784665,0.07549626,2551.5,2551.4,23.38373399]
[1748103785167,0.78344,2551.9,2551.8,0.78346]
[1748103785566,0.78344,2551.9,2551.7,0.78348]
[1748103785766,0.78344,2551.9,2551.8,1.3086]
[1748103786974,0.78352,2551.6,2551.5,3.2078]
[1748103787173,0.78352,2551.6,2551.5,2.09505]
[1748103787570,0.78351,2551.7,2551.5,2.09505]
[1748103787774,1.2962,2551.8,2551.6,1.3115]
[1748103787973,1.43669,2551.7,2551.6,1.3115]
[1748103789177,1.43669,2551.7,2551.6,2.09502]
[1748103789473,1.43669,2551.7,2551.6,1.3115]
[1748103790077,19.07169,2551.7,2551.6,2.09502]
[1748103791471,17.635,2551.7,2551.6,2.09502]
[1748103791877,18.41849,2551.7,2551.6,2.09502]
[1748103793274,18.41849,2551.7,2551.6,1.3115]
[1748103793879,0.78347,2551.8,2551.6,1.3115]
[1748103794079,17.635,2551.7,2551.6,2.09502]
[1748103794379,0.78347,2551.8,2551.7,0.78349]
[1748103794574,6.32622359,2551.9,2551.8,0.78346]
[1748103794774,23.96122359,2551.9,2551.8,0.78346]
[1748103794975,3.11842359,2551.9,2551.8,1.45806]
[1748103795490,2.33496359,2551.9,2551.8,1.45806]
[1748103795781,2.33496359,2551.9,2551.8,6.45806]
[1748103796282,0.00470065,2552.1,2552.0,0.7834]
[1748103799285,0.08019691,2552.1,2552.0,0.7834]
[1748103799786,0.86356691,2552.1,2552.0,1.3722]
[1748103801177,0.08019691,2552.1,2551.7,0.78348]
[1748103801388,0.78346,2551.9,2551.7,2.10938]
[1748103801683,0.78346,2551.9,2551.8,1.3259]
[1748103802489,0.78346,2551.9,2551.8,2.10936]
[1748103802695,0.78346,2551.9,2551.8,1.3259]
[1748103802896,0.78349,2551.7,2551.6,0.78352]
[1748103803191,18.41649,2551.7,2551.6,2.10941]
[1748103804096,17.633,2551.7,2551.6,2.10941]
[1748103805591,18.41649,2551.7,2551.6,2.10941]
[1748103805795,17.633,2551.7,2551.6,2.10941]
[1748103805991,17.633,2551.8,2551.7,0.78349]
[1748103806188,5.80268359,2552.0,2551.9,0.78343]
[1748103806493,23.43568359,2552.0,2551.8,0.78344]
[1748103806697,5.80268359,2552.0,2551.9,2.19983]
[1748103806996,23.43568359,2552.0,2551.9,2.19983]
[1748103807293,21.10072,2552.0,2551.9,1.4164]
[1748103807494,21.10072,2552.0,2551.9,2.19983]
[1748103807697,21.10072,2552.0,2551.9,1.4164]
[1748103807896,18.41642,2552.0,2551.9,2.19983]
[1748103808285,18.41642,2552.0,2551.9,1.4164]
[1748103809702,19.79462,2552.0,2551.9,1.4164]
[1748103812003,19.79462,2552.0,2551.9,2.19983]
[1748103812305,18.41642,2552.0,2551.9,2.19983]
[1748103812707,18.41642,2552.0,2551.9,1.4164]
[1748103813004,19.71962,2552.0,2551.9,1.4164]
[1748103813408,0.78342,2552.0,2551.9,2.19983]
[1748103813907,18.41642,2552.0,2551.9,2.19983]
[1748103814708,18.41642,2552.0,2551.9,1.4164]
[1748103816407,0.78349,2551.7,2551.6,3.2078]
[1748103816604,0.78348,2551.8,2551.6,3.2078]
[1748103816805,0.78348,2551.8,2551.7,0.78349]
[1748103817506,2.10064,2551.9,2551.8,0.78346]
[1748103817903,0.78346,2551.8,2551.7,1.309]
[1748103818103,2.10066,2551.8,2551.7,2.09249]
[1748103818404,0.78346,2551.8,2551.7,2.09249]
[1748103818803,0.78346,2551.8,2551.7,1.309]
[1748103819214,0.78346,2551.8,2551.7,2.09249]
[1748103820104,2.10065,2551.9,2551.7,2.09249]
[1748103820305,2.10065,2551.9,2551.8,0.78346]
[1748103820608,2.10065,2551.9,2551.7,2.09248]
[1748103820798,1.3484,2551.8,2551.7,2.09248]
[1748103821603,2.13186,2551.8,2551.7,1.309]
[1748103822309,2.13186,2551.8,2551.7,2.09249]
[1748103823112,2.13186,2551.8,2551.7,1.309]
[1748103823412,2.13186,2551.8,2551.7,2.09249]
[1748103825015,0.78351,2551.7,2551.6,0.78351]
[1748103825315,2.87251,2551.7,2551.6,0.78351]
[1748103826107,2.87251,2551.7,2551.5,2.07373]
[1748103826108,0.78352,2551.6,2551.5,2.07373]
[1748103826311,2.87251,2551.7,2551.6,0.78352]
[1748103826511,2.87251,2551.7,2551.6,2.07362]
[1748103826707,0.78358,2551.4,2551.3,3.2078]
[1748103826912,0.78362,2551.3,2551.2,1.87264399]
[1748103827815,0.78362,2551.3,2551.2,1.2901]
[1748103828317,0.78362,2551.3,2551.2,2.07374]
[1748103829117,0.78362,2551.3,2551.2,1.2901]
[1748103829614,23.17676359,2551.6,2551.5,0.78355]
[1748103829818,2.33496359,2551.6,2551.5,0.78355]
[1748103830319,2.33496359,2551.6,2551.5,3.57615]
[1748103830815,0.78349,2551.7,2551.5,3.57615]
[1748103831020,0.78349,2551.7,2551.6,1.4008]
[1748103831319,0.78349,2551.7,2551.6,2.18432]
[1748103833719,0.78349,2551.7,2551.6,1.4008]
[1748103835423,0.78349,2551.7,2551.6,2.18432]
[1748103835719,3.11840359,2551.9,2551.8,0.78346]
[1748103835920,0.78346,2551.8,2551.7,1.3505]
[1748103836721,1.45806,2551.8,2551.7,1.3505]
[1748103836924,0.78352,2551.6,2551.5,1.3918]
[1748103837124,0.78352,2551.6,2551.5,2.7423]
[1748103837424,0.78352,2551.6,2551.5,2.0582]
[1748103837817,0.78352,2551.6,2551.5,2.84175]
[1748103838020,0.78352,2551.6,2551.5,2.0582]
[1748103838526,0.78352,2551.6,2551.5,1.3505]
[1748103838923,0.78352,2551.6,2551.3,0.6891]
[1748103838924,0.78359,2551.4,2551.3,0.6891]
[1748103839119,0.78359,2551.4,2551.3,2.0151]
[1748103841819,18.41859,2551.4,2551.3,2.0151]
[1748103844924,18.49408626,2551.4,2551.3,2.0151]
[1748103845930,21.70188626,2551.4,2551.3,2.0151]
[1748103846122,21.70188626,2551.4,2551.3,1.326]
[1748103846324,23.76578626,2551.4,2551.3,1.326]
[1748103848126,20.55798626,2551.4,2551.3,1.326]
[1748103848327,23.76578626,2551.4,2551.3,1.326]
[1748103848529,0.78365,2551.2,2551.1,0.00588016]
[1748103849320,0.78365,2551.2,2551.1,1.33608016]
[1748103851433,0.78365,2551.2,2551.1,2.11976016]
[1748103854928,0.78364,2551.3,2551.2,0.78365]
[1748103855127,18.96529626,2551.4,2551.3,0.78362]
[1748103855128,20.92029626,2551.4,2551.3,0.78362]
[1748103855331,3.28329626,2551.4,2551.3,0.78362]
[1748103855632,0.07549626,2551.4,2551.3,0.78362]
[1748103855834,0.07549626,2551.4,2551.3,2.10592]
[1748103856734,0.07549626,2551.4,2551.3,7.10592]
[1748103858534,0.07549626,2551.4,2551.3,2.10592]
[1748103862146,0.85908626,2551.4,2551.3,2.10592]
[1748103862935,0.07549626,2551.4,2551.3,2.10592]
[1748103863638,0.85908626,2551.4,2551.3,2.10592]
[1748103863838,0.85908626,2551.4,2551.3,1.3223]
[1748103864033,4.06688626,2551.4,2551.3,1.3223]
[1748103864827,6.17038626,2551.4,2551.3,1.3223]
[1748103865033,21.70288626,2551.4,2551.3,1.3223]
[1748103865539,0.07549626,2551.4,2551.3,2.10592]
[1748103865740,18.49508626,2551.4,2551.3,2.10592]
[1748103866240,18.49508626,2551.4,2551.3,1.3223]
[1748103866742,0.78365,2551.2,2551.1,0.00588016]
[1748103866942,0.78365,2551.2,2551.1,0.78956016]
[1748103868338,0.78365,2551.2,2551.1,0.00588016]
[1748103868942,0.78365,2551.2,2551.1,1.30688016]
[1748103869941,0.78365,2551.2,2551.1,0.00588016]
[1748103871245,0.78365,2551.2,2551.1,1.30688016]
[1748103871434,2.41045985,2551.4,2551.1,1.30688016]
[1748103871639,0.78365,2551.2,2551.1,2.09054016]
[1748103873144,2.41045985,2551.4,2551.1,2.09054016]
[1748103873347,18.42164,2551.3,2551.2,2.08014]
[1748103873748,18.42164,2551.3,2551.2,2.08015]
[1748103874449,18.42164,2551.3,2551.2,1.2965]
[1748103876749,18.42164,2551.3,2551.2,2.08015]
[1748103876950,8.35164359,2551.5,2551.2,1.2965]
[1748103877251,17.638,2551.4,2551.3,2.1023]
[1748103877447,17.638,2551.4,2551.3,0.6979]
[1748103878052,18.42158,2551.4,2551.3,0.6979]
[1748103878549,17.638,2551.4,2551.1,0.78955016]
[1748103878754,0.78365,2551.2,2551.1,0.00588016]
[1748103879254,24.67445,2551.2,2551.1,0.00588016]
[1748103879553,21.13044626,2551.2,2551.1,0.00588016]
[1748103886258,38.76944626,2551.2,2551.1,0.00588016]
[1748103888859,18.95229626,2551.2,2551.1,0.78956016]
[1748103889164,37.37594626,2551.2,2551.1,0.00588016]
[1748103889455,37.37594626,2551.2,2551.1,0.67488016]
[1748103890050,0.07549626,2551.2,2551.1,1.45856016]
[1748103890258,17.71549626,2551.2,2551.1,1.45856016]
[1748103890550,18.49914626,2551.2,2551.1,1.45856016]
[1748103890745,17.71549626,2551.2,2551.1,1.45856016]
[1748103891461,18.49914626,2551.2,2551.1,1.45856016]
[1748103896668,18.49914626,2551.2,2551.1,0.67488016]
[1748103896971,18.49914626,2551.2,2551.1,0.00588016]
[1748103897170,18.49914626,2551.2,2551.1,1.32888016]
[1748103898474,20.83629837,2551.2,2551.1,1.32888016]
[1748103898664,3.19629837,2551.2,2551.1,1.32888016]
[1748103898865,20.83429837,2551.2,2551.1,2.11256016]
[1748103900171,18.49714626,2551.2,2551.1,1.32888016]
[1748103901073,18.49714626,2551.2,2551.1,2.11256016]
[1748103901572,0.07549626,2551.2,2551.1,2.11256016]
[1748103901774,17.71449626,2551.2,2551.1,2.11256016]
[1748103902167,0.07549626,2551.2,2551.1,2.11256016]
[1748103908878,17.71249626,2551.2,2551.1,2.11256016]
[1748103909979,0.07549626,2551.2,2551.1,2.11256016]
[1748103910777,18.49614626,2551.2,2551.1,0.00588016]
[1748103911477,19.88744626,2551.2,2551.1,0.00588016]
[1748103912681,0.7838,2550.7,2550.6,0.6955]
[1748103912875,0.78383,2550.6,2550.5,2.0848]
[1748103913075,18.42083,2550.6,2550.5,2.86866]
[1748103913975,17.637,2550.6,2550.5,2.86866]
[1748103914184,18.42083,2550.6,2550.5,2.86866]
[1748103914580,0.69808016,2550.8,2550.6,0.78383]
[1748103914782,17.64388016,2550.8,2550.7,2.1689]
[1748103915181,18.42765016,2550.8,2550.7,1.3851]
[1748103916280,18.42765016,2550.8,2550.7,2.1689]
[1748103916481,18.42765016,2550.8,2550.7,1.3851]
[1748103916482,17.64388016,2550.8,2550.7,1.3851]
[1748103916675,17.64388016,2550.8,2550.7,2.1689]
[1748103916877,0.00588016,2550.8,2550.7,2.1689]
[1748103917075,17.64388016,2550.8,2550.7,2.1689]
[1748103918883,18.42765016,2550.8,2550.7,1.3851]
[1748103921082,18.50314642,2550.8,2550.7,1.3851]
[1748103921287,19.90494642,2550.8,2550.7,1.3851]
[1748103925288,18.50514642,2550.8,2550.7,2.1689]
[1748103925489,18.50514642,2550.8,2550.7,1.3851]
[1748103925688,0.86514642,2550.8,2550.7,1.3851]
[1748103925889,18.50514642,2550.8,2550.7,1.3851]
[1748103926480,17.72137642,2550.8,2550.7,2.1689]
[1748103927294,0.08137642,2550.8,2550.7,2.1689]
[1748103927589,17.72137642,2550.8,2550.7,2.1689]
[1748103927789,18.50514642,2550.8,2550.7,1.3851]
[1748103931085,0.78383,2550.6,2550.5,3.8815]
[1748103931287,0.78383,2550.6,2550.5,5.2486]
[1748103932192,0.78383,2550.6,2550.5,4.5749]
[1748103932494,0.78383,2550.6,2550.5,1.3671]
[1748103933293,0.78383,2550.6,2550.5,2.15096]
[1748103934496,0.78386,2550.5,2550.4,0.78387]
[1748103934796,0.78389,2550.4,2550.3,0.00588016]
[1748103935094,0.78398,2550.1,2550.0,0.58750297]
[1748103935285,37.28478,2550.1,2550.0,0.58750297]
[1748103935490,37.28478,2550.1,2549.7,2.15881]
[1748103935491,0.78405,2549.9,2549.8,0.58750297]
[1748103936088,2.73565,2549.9,2549.8,0.58750297]
[1748103936286,0.78408,2549.8,2549.7,2.15881]
[1748103936595,2.73566,2549.9,2549.7,2.15879]
[1748103936998,1.9516,2549.9,2549.7,1.3747]
[1748103937194,0.78408,2549.8,2549.7,1.3747]
[1748103937492,0.78408,2549.8,2549.6,3.21368016]
[1748103937493,0.78411,2549.7,2549.6,0.00588016]
[1748103938300,17.79201,2549.7,2549.6,0.00588016]
[1748103938794,3.99189,2549.8,2549.6,0.00588016]
[1748103939095,3.99189,2549.8,2549.7,0.78411]
[1748103939294,21.63489,2549.8,2549.7,1.3606]
[1748103939697,0.78411,2549.7,2549.6,0.00588016]
[1748103939892,2.13801,2549.7,2549.6,0.00588016]
[1748103943893,0.78411,2549.7,2549.6,0.00588016]
[1748103944089,18.42911,2549.7,2549.6,0.00588016]
[1748103944293,0.78411,2549.7,2549.6,0.00588016]
[1748103944499,18.42911,2549.7,2549.6,0.00588016]
[1748103944700,18.42911,2549.7,2549.6,1.42128016]
[1748103946395,19.73821,2549.7,2549.6,1.42128016]
[1748103947090,19.73821,2549.7,2549.6,0.00588016]
[1748103947800,35.38221,2549.7,2549.6,0.00588016]
[1748103950502,35.45770626,2549.7,2549.6,0.00588016]
[1748103950702,2.16870626,2549.7,2549.6,0.00588016]
[1748103950902,35.45970626,2549.7,2549.6,0.00588016]
[1748103952604,34.15060626,2549.7,2549.6,0.00588016]
[1748103953107,0.85960626,2549.7,2549.6,0.00588016]
[1748103953305,34.15060626,2549.7,2549.6,0.00588016]
[1748103954104,34.15060626,2549.7,2549.6,1.41888016]
[1748103954704,0.85960626,2549.7,2549.6,1.41888016]
[1748103955007,0.85960626,2549.7,2549.6,2.20302016]
[1748103955205,18.50860626,2549.7,2549.6,1.41888016]
[1748103960718,18.50860626,2549.7,2549.6,0.00588016]
[1748103961008,0.7842,2549.4,2549.3,0.649]
[1748103961210,3.992,2549.4,2549.3,0.649]
[1748103965610,4.06749626,2549.4,2549.3,0.649]
[1748103965811,4.06749626,2549.4,2549.3,1.43323]
[1748103966211,18.50969626,2549.4,2549.3,1.43323]
[1748103966922,0.07549626,2549.4,2549.3,1.43323]
[1748103968019,0.85969626,2549.4,2549.3,1.43323]
[1748103968220,0.07549626,2549.4,2549.3,1.43323]
[1748103968719,20.77245257,2549.6,2549.5,0.78417]
[1748103969018,19.98830257,2549.6,2549.5,0.78417]
[1748103969214,17.65,2549.6,2549.5,0.78417]
[1748103969715,3.2078,2549.7,2549.6,0.78414]
[1748103969915,21.64191,2549.7,2549.6,0.78414]
[1748103970118,3.99191,2549.7,2549.6,0.78414]
[1748103971220,0.78411,2549.7,2549.6,0.78414]
[1748103971422,0.78411,2549.7,2549.5,0.78415]
[1748103971618,0.78411,2549.7,2549.6,1.986]
[1748103972116,0.78411,2549.7,2549.6,2.77014]
[1748103973219,0.78409,2549.8,2549.6,1.986]
[1748103973415,0.78409,2549.8,2549.7,1.9787]
[1748103974519,6.33014257,2550.0,2549.8,0.78405]
[1748103974718,23.97911257,2550.0,2549.9,1.3126]
[1748103975020,6.33011257,2550.0,2549.9,1.3126]
[1748103975716,3.99181,2550.0,2549.9,1.3126]
[1748103976222,0.78401,2550.0,2549.9,1.3126]
[1748103978516,3.99181,2550.0,2549.9,1.3126]
[1748103978922,4.68451,2550.0,2549.9,1.3126]
[1748103979918,4.76000626,2550.0,2549.9,1.3126]
[1748103980419,22.40800626,2550.0,2549.9,1.3126]
[1748103980615,0.85950626,2550.0,2549.9,2.09665]
[1748103981023,0.07549626,2550.0,2549.9,2.09665]
[1748103981419,0.85950626,2550.0,2549.9,2.09665]
[1748103986922,0.07549626,2550.0,2549.9,2.09665]
[1748103988828,0.07549626,2550.0,2549.9,7.09665]
[1748103989828,1e-08,2550.0,2549.9,10.30445]
[1748103994135,1e-08,2550.0,2549.9,10.89195297]
[1748103994339,3.21368016,2550.8,2550.7,0.7838]
[1748103995534,3.99745016,2550.8,2550.7,2.1104]
[1748103996031,3.99745016,2550.8,2550.7,1.3266]
[1748103997129,0.78965016,2550.8,2550.7,2.1104]
[1748103997433,0.00588016,2550.8,2550.7,2.1104]
[1748103998025,0.78965016,2550.8,2550.7,2.1104]
[1748103998230,0.78965016,2550.8,2550.7,1.3266]
[1748103998831,2.14575016,2550.8,2550.7,1.3266]
[1748104000333,2.14575016,2550.8,2550.7,2.1104]
[1748104000531,2.14575016,2550.8,2550.7,1.3266]
[1748104000936,2.14575016,2550.8,2550.7,2.1104]
[1748104001136,2.14575016,2550.8,2550.7,1.3266]
[1748104001525,2.14575016,2550.8,2550.7,2.1104]
[1748104002831,2.14575016,2550.8,2550.7,1.3266]
[1748104003136,2.14575016,2550.8,2550.7,2.1104]
[1748104005032,0.00588016,2550.8,2550.7,2.1104]
[1748104006635,0.78965016,2550.8,2550.7,1.3266]
[1748104008239,0.78965016,2550.8,2550.7,2.1104]
[1748104008741,0.00588016,2550.8,2550.7,2.1104]
[1748104009453,0.08137642,2550.8,2550.7,2.1104]
[1748104012562,25.27370257,2551.6,2551.5,0.78355]
[1748104012957,26.05722257,2551.6,2551.5,0.78355]
[1748104013457,23.71892,2551.6,2551.5,0.78355]
[1748104013857,23.71892,2551.6,2551.4,0.78356]
[1748104014059,23.71892,2551.6,2551.5,1.3098]
[1748104014657,6.07892,2551.6,2551.5,2.09335]
[1748104014856,3.2078,2551.6,2551.5,2.09335]
[1748104016457,3.99132,2551.6,2551.5,2.09335]
[1748104016764,3.2078,2551.6,2551.5,2.09335]
[1748104017365,0.641,2551.7,2551.6,0.78352]
[1748104017554,0.00588016,2551.8,2551.7,0.78349]
[1748104017857,0.00588016,2551.8,2551.7,1.47529]
[1748104018063,0.00588016,2551.8,2551.7,2.16769]
[1748104019859,0.00588016,2551.8,2551.7,5.37549]
[1748104020258,6.32939257,2552.4,2552.2,0.78331]
[1748104020457,17.636,2552.3,2552.2,0.78331]
[1748104020658,19.76872,2552.3,2551.9,1.3382]
[1748104020958,19.76872,2552.3,2552.1,0.78335]
[1748104021260,0.78334,2552.2,2552.0,0.78339]
[1748104021560,3.49744,2552.2,2552.1,1.3382]
[1748104022165,2.7141,2552.2,2552.1,2.12157]
[1748104022566,3.2078,2552.4,2552.3,0.78331]
[1748104023166,3.2078,2552.4,2552.3,2.16751]
[1748104023667,0.00588016,2552.5,2552.4,0.78328]
[1748104026268,0.78914016,2552.5,2552.3,2.16749]
[1748104026469,0.78914016,2552.5,2552.4,1.3649]
[1748104026865,0.78914016,2552.5,2552.4,2.14818]
[1748104027270,0.78334,2552.2,2552.1,3.2078]
[1748104027466,0.7834,2552.0,2551.9,1.37078016]
[1748104027673,0.7834,2552.0,2551.9,0.00588016]
[1748104027674,18.4164,2552.0,2551.9,0.00588016]
[1748104027969,26.6242,2552.0,2551.9,0.00588016]
[1748104028164,21.6242,2552.0,2551.9,0.00588016]
[1748104028366,3.9912,2552.0,2551.9,0.00588016]
[1748104028669,21.6242,2552.0,2551.9,0.00588016]
[1748104029072,22.9347,2552.0,2551.9,0.00588016]
[1748104029971,5.3017,2552.0,2551.9,0.00588016]
[1748104030171,22.9337,2552.0,2551.9,0.00588016]
[1748104030374,22.9337,2552.0,2551.9,1.40118016]
[1748104034280,18.9425,2552.0,2551.9,2.18461016]
[1748104034481,17.632,2552.1,2551.9,1.40118016]
[1748104034682,17.632,2552.1,2552.0,2.1453]
[1748104034978,17.632,2552.1,2552.0,2.8272]
[1748104035167,0.76689626,2552.2,2552.1,0.78337]
[1748104035372,0.07549626,2552.2,2552.1,2.06677]
[1748104045888,0.07549626,2552.2,2552.1,5.27457]
[1748104046686,0.07549626,2552.2,2552.1,5.86207297]
[1748104047983,0.07549626,2552.2,2552.1,5.27457]
[1748104048183,0.07549626,2552.2,2552.1,5.26986935]
[1748104054288,0.07549626,2552.2,2552.1,20.84786935]
[1748104060301,0.07549626,2552.2,2552.1,21.43537232]
[1748104063604,0.07549626,2552.2,2552.1,20.84786935]
[1748104065007,0.07549626,2552.2,2552.1,21.62853591]
[1748104066407,6.26e-06,2552.2,2552.1,21.62853591]
[1748104066705,2.33830257,2552.8,2552.7,0.78319]
[1748104066902,2.33830257,2552.8,2552.7,3.99099]
[1748104067415,2.33830257,2552.8,2552.7,5.36409]
[1748104068607,1.3528,2552.9,2552.8,0.78315]
[1748104068802,1.3528,2552.9,2552.8,2.16565]
[1748104069002,1.31988016,2553.0,2552.9,0.78312]
[1748104069196,1.31988016,2553.0,2552.9,2.16562]
[1748104073109,1.31988016,2553.0,2552.9,0.78312]
[1748104074110,2.69908016,2553.0,2552.9,0.78312]
[1748104074810,3.48217016,2553.0,2552.9,0.78312]
[1748104074999,0.78312,2552.9,2552.7,3.2078]
[1748104075203,2.16285,2552.8,2552.7,3.2078]
[1748104075402,2.23834626,2552.8,2552.7,3.2078]
[1748104075614,7.23834626,2552.8,2552.7,3.2078]
[1748104075907,0.78318,2552.7,2552.6,0.58523838]
[1748104076106,2.16288,2552.7,2552.6,0.58523838]
[1748104076298,7.16288,2552.7,2552.6,0.58523838]
[1748104076699,7.16288,2552.7,2552.3,1.17232963]
[1748104076700,6.3797,2552.7,2552.3,0.78329]
[1748104076899,2.7398,2552.6,2552.3,0.78329]
[1748104077099,2.16295,2552.5,2552.3,0.78329]
[1748104077312,1.3797,2552.4,2552.3,0.78329]
[1748104077506,1.3797,2552.4,2552.1,0.58523838]
[1748104077710,0.78334,2552.2,2552.1,0.58523838]
[1748104077909,18.40934,2552.2,2552.1,0.58523838]
[1748104078213,23.40934,2552.2,2552.1,0.58523838]
[1748104078410,18.40934,2552.2,2552.1,0.58523838]
[1748104078709,0.78337,2552.1,2551.9,0.78930016]
[1748104078909,1.4069,2552.0,2551.9,0.78930016]
[1748104079310,1.4069,2552.0,2551.9,0.00588016]
[1748104079510,2.1903,2552.0,2551.9,0.00588016]
[1748104079711,7.1903,2552.0,2551.9,0.00588016]
[1748104079913,6.4069,2552.0,2551.9,0.00588016]
[1748104080111,7.1903,2552.0,2551.9,0.00588016]
[1748104082416,2.1903,2552.0,2551.9,0.00588016]
[1748104084816,7.1903,2552.0,2551.9,0.00588016]
[1748104085018,22.7513,2552.0,2551.9,0.00588016]
[1748104085615,22.82679626,2552.0,2551.9,0.00588016]
[1748104087320,19.89679626,2552.0,2551.9,0.00588016]
[1748104090518,2.26579626,2552.0,2551.9,0.00588016]
[1748104090725,19.89679626,2552.0,2551.9,0.00588016]
[1748104091624,24.89679626,2552.0,2551.9,0.00588016]
[1748104091820,2.26579626,2552.0,2551.9,0.00588016]
[1748104092014,35.46179626,2552.0,2551.9,0.00588016]
[1748104092425,35.46179626,2552.0,2551.9,1.38978016]
[1748104093022,0.85889626,2552.0,2551.9,1.38978016]
[1748104093223,18.49089626,2552.0,2551.9,1.38978016]
[1748104093930,19.90729626,2552.0,2551.9,1.38978016]
[1748104094527,2.27529626,2552.0,2551.9,1.38978016]
[1748104094728,19.90729626,2552.0,2551.9,1.38978016]
[1748104098733,18.49089626,2552.0,2551.9,1.38978016]
[1748104099532,0.85889626,2552.0,2551.9,1.38978016]
[1748104099736,18.49189626,2552.0,2551.9,1.38978016]
[1748104100835,0.78358,2551.4,2551.3,3.9914]
[1748104101132,0.78358,2551.4,2551.3,6.5783]
[1748104102229,0.78357,2551.5,2551.4,0.78356]
[1748104102436,0.78357,2551.5,2551.4,2.20176]
[1748104102628,0.78942016,2551.6,2551.5,0.78355]
[1748104102935,0.78942016,2551.6,2551.5,1.4182]
[1748104103934,0.00588016,2551.6,2551.5,2.20175]
[1748104104135,0.00588016,2551.6,2551.1,1.96502016]